[Event "36th European Club Cup 2021"]
[Site "Struga"]
[Date "2021.09.24"]
[Round "7.26"]
[White "Ivanisevic, Ivan"]
[Black "Nabaty, Tamir"]
[Result "1/2-1/2"]
[ECO "D27"]
[WhiteElo "2582"]
[BlackElo "2638"]
[Annotator "ChessBase"]
[PlyCount "109"]
[EventDate "2021.09.18"]
[EventType "team-tourn"]
[EventCountry "MKD"]
[SourceTitle "playchess.com"]
[Source "ChessBase"]
[SourceQuality "1"]
[TimeControl "40/5400+30:1800+30"]

1. d4 {[%emt 0:00:03]} d5 {[%emt 0:00:31]} 2. c4 {[%emt 0:00:08]} e6 {[%emt 0:
00:12]} 3. Nc3 {[%emt 0:00:06]} Nf6 {[%emt 0:00:05]} 4. Nf3 {[%emt 0:00:11]}
dxc4 {[%emt 0:00:14]} 5. e3 {[%emt 0:00:05]} a6 {[%emt 0:00:05]} 6. Bxc4 {
[%emt 0:00:27]} b5 {[%emt 0:00:16]} 7. Bb3 {[%emt 0:00:06]} Bb7 {[%emt 0:00:48]
} 8. O-O {[%emt 0:00:07]} c5 {[%emt 0:01:58]} 9. e4 {[%emt 0:00:32]} Be7 {
[%emt 0:05:56]} 10. e5 {[%emt 0:02:10]} Ne4 {[%emt 0:03:39]} 11. Ne2 {[%emt 1:
32:05]} O-O {[%emt 0:03:39]} 12. Nf4 {[%emt 0:00:00]} cxd4 {[%emt 0:11:42]} 13.
Nxd4 {[%emt 0:00:00]} Nc6 {[%emt 0:01:30]} 14. Nxc6 {[%emt 0:00:00]} Bxc6 {
[%emt 0:00:14]} 15. Be3 {[%emt 0:00:00]} Bc5 {[%emt 0:06:28]} 16. Rc1 {[%emt 0:
00:00]} Bxe3 {[%emt 0:07:28]} 17. fxe3 {[%emt 0:00:00]} Bb7 {[%emt 0:05:45]}
18. Qxd8 {[%emt 0:00:00]} Raxd8 {[%emt 0:02:44]} 19. Rc7 {[%emt 0:00:00]} Ba8 {
[%emt 0:00:36]} 20. h4 {[%emt 0:00:00]} Ng3 {[%emt 0:08:46]} 21. Rf2 {[%emt 0:
00:00]} Ne4 {[%emt 0:00:41]} 22. Nxe6 {[%emt 0:00:00]} fxe6 {[%emt 0:00:38]}
23. Bxe6+ {[%emt 0:00:00]} Kh8 {[%emt 0:00:05]} 24. Rxf8+ {[%emt 0:00:00]} Rxf8
{[%emt 0:00:04]} 25. Bf7 {[%emt 0:00:00]} g6 {[%emt 0:21:16]} 26. e6 {[%emt 0:
00:00]} Nf6 {[%emt 0:05:22]} 27. e7 {[%emt 0:00:00]} Rb8 {[%emt 0:00:02]} 28.
g4 {[%emt 0:00:00]} Bf3 {[%emt 0:03:46]} 29. g5 {[%emt 0:00:00]} Ne8 {[%emt 0:
00:08]} 30. Rd7 {[%emt 0:00:00]} Kg7 {[%emt 0:00:17]} 31. Rd8 {[%emt 0:02:02]}
Kxf7 {[%emt 0:00:06]} 32. Rxb8 {[%emt 0:00:05]} Kxe7 {[%emt 0:00:29]} 33. Rb6 {
[%emt 0:02:14]} Nc7 {[%emt 0:00:23]} 34. Kf2 {[%emt 0:00:14]} Bd5 {[%emt 0:04:
17]} 35. a3 {[%emt 0:00:39]} a5 {[%emt 0:04:05]} 36. Rb8 {[%emt 0:01:18]} Kd6 {
[%emt 0:03:37]} 37. Rh8 {[%emt 0:00:23]} Be4 {[%emt 0:00:25]} 38. Rxh7 {
[%emt 0:00:28]} Ne6 {[%emt 0:00:37]} 39. Kg3 {[%emt 0:02:09]} Bc2 {[%emt 0:00:
31]} 40. Rf7 {[%emt 0:00:00]} b4 {[%emt 0:00:00]} 41. Ra7 {[%emt 0:10:42]} Nc5
{[%emt 0:02:14]} 42. Rxa5 {[%emt 0:03:09]} b3 {[%emt 0:00:11]} 43. h5 {[%emt 0:
00:11]} gxh5 {[%emt 0:00:25]} 44. Kh4 {[%emt 0:00:12]} Nd3 {[%emt 0:00:49]} 45.
g6 {[%emt 0:01:06]} Nxb2 {[%emt 0:00:24]} 46. g7 {[%emt 0:00:30]} Bh7 {[%emt 0:
00:06]} 47. Rxh5 {[%emt 0:00:56]} Bg8 {[%emt 0:00:01]} 48. Rh8 {[%emt 0:00:18]}
Bc4 {[%emt 0:00:16]} 49. g8=Q {[%emt 0:00:15]} Bxg8 {[%emt 0:00:06]} 50. Rxg8 {
[%emt 0:00:07]} Kc5 {[%emt 0:12:00]} 51. Rc8+ {[%emt 0:18:37]} Kb5 {[%emt 0:00:
23]} 52. Rc3 {[%emt 0:01:22]} Ka4 {[%emt 0:00:42]} 53. e4 {[%emt 0:00:07]} Nd1
{[%emt 0:04:25]} 54. Rc1 {[%emt 0:01:07]} Ne3 {[%emt 0:02:54]} 55. e5 {[%emt 0:
00:31]} 1/2-1/2

[Event "36th European Club Cup 2021"]
[Site "Struga"]
[Date "2021.09.24"]
[Round "7.27"]
[White "Roiz, Michael"]
[Black "Miladinovic, Igor"]
[Result "1/2-1/2"]
[ECO "D30"]
[WhiteElo "2580"]
[BlackElo "2536"]
[Annotator "ChessBase"]
[PlyCount "67"]
[EventDate "2021.09.18"]
[EventType "team-tourn"]
[EventCountry "MKD"]
[SourceTitle "playchess.com"]
[Source "ChessBase"]
[SourceQuality "1"]
[TimeControl "40/5400+30:1800+30"]

1. d4 {[%emt 0:00:04]} d5 {[%emt 0:00:09]} 2. c4 {[%emt 0:00:05]} e6 {[%emt 0:
02:05]} 3. Nf3 {[%emt 0:01:53]} a6 {[%emt 0:03:31]} 4. Bg5 {[%emt 0:00:51]} Be7
{[%emt 0:00:51]} 5. Bxe7 {[%emt 0:00:46]} Qxe7 {[%emt 0:00:09]} 6. Nbd2 {
[%emt 0:01:26]} Nf6 {[%emt 0:03:20]} 7. g3 {[%emt 1:28:55]} dxc4 {[%emt 0:05:
17]} 8. Nxc4 {[%emt 0:00:00]} Nc6 {[%emt 0:07:48]} 9. Rc1 {[%emt 0:00:00]} O-O
{[%emt 0:12:34]} 10. Bg2 {[%emt 0:00:00]} Rd8 {[%emt 0:00:05]} 11. e3 {[%emt 0:
00:00]} Qb4+ {[%emt 0:05:04]} 12. Qd2 {[%emt 0:00:00]} Qxd2+ {[%emt 0:08:33]}
13. Kxd2 {[%emt 0:00:00]} Nb4 {[%emt 0:04:35]} 14. a3 {[%emt 0:00:00]} Nbd5 {
[%emt 0:03:49]} 15. Nfe5 {[%emt 0:00:00]} a5 {[%emt 0:02:10]} 16. Rhd1 {
[%emt 0:00:00]} Bd7 {[%emt 0:03:36]} 17. Nxd7 {[%emt 0:00:00]} Nxd7 {[%emt 0:
00:19]} 18. Ke2 {[%emt 0:00:00]} c6 {[%emt 0:03:18]} 19. g4 {[%emt 0:00:00]}
Kf8 {[%emt 0:02:28]} 20. g5 {[%emt 0:00:00]} Ke7 {[%emt 0:01:31]} 21. h4 {
[%emt 0:00:00]} a4 {[%emt 0:03:25]} 22. Nd2 {[%emt 0:00:00]} Ra5 {[%emt 0:00:
23]} 23. Rc2 {[%emt 0:00:00]} h6 {[%emt 0:03:20]} 24. Be4 {[%emt 0:00:00]} hxg5
{[%emt 0:01:51]} 25. hxg5 {[%emt 0:00:00]} Rh8 {[%emt 0:00:20]} 26. Rh1 {
[%emt 0:00:00]} Rxh1 {[%emt 0:01:10]} 27. Bxh1 {[%emt 0:00:00]} Rb5 {[%emt 0:
00:49]} 28. Be4 {[%emt 0:00:00]} N5b6 {[%emt 0:01:21]} 29. f4 {[%emt 0:00:21]}
f6 {[%emt 0:00:22]} 30. Nf3 {[%emt 0:03:01]} Ra5 {[%emt 0:05:07]} 31. Rc1 {
[%emt 0:02:05]} Rb5 {[%emt 0:00:06]} 32. Rc2 {[%emt 0:00:07]} Ra5 {[%emt 0:00:
09]} 33. Rc1 {[%emt 0:02:58]} Rb5 {[%emt 0:00:05]} 34. Rc2 {[%emt 0:00:02]}
1/2-1/2

[Event "36th European Club Cup 2021"]
[Site "Struga"]
[Date "2021.09.24"]
[Round "7.28"]
[White "Perunovic, Milos"]
[Black "Rodshtein, Maxim"]
[Result "0-1"]
[ECO "C67"]
[WhiteElo "2566"]
[BlackElo "2599"]
[Annotator "ChessBase"]
[PlyCount "74"]
[EventDate "2021.09.18"]
[EventType "team-tourn"]
[EventCountry "MKD"]
[SourceTitle "playchess.com"]
[Source "ChessBase"]
[SourceQuality "1"]
[TimeControl "40/5400+30:1800+30"]

1. e4 {[%emt 0:00:07]} e5 {[%emt 0:00:14]} 2. Nf3 {[%emt 0:00:21]} Nc6 {
[%emt 0:00:08]} 3. Bb5 {[%emt 0:01:43]} Nf6 {[%emt 0:00:21]} 4. O-O {[%emt 0:
05:09]} Nxe4 {[%emt 0:00:42]} 5. d4 {[%emt 0:00:33]} Nd6 {[%emt 0:00:41]} 6.
dxe5 {[%emt 0:00:53]} Nxb5 {[%emt 0:00:13]} 7. a4 {[%emt 0:00:14]} Nbd4 {
[%emt 0:00:30]} 8. Nxd4 {[%emt 0:00:08]} d5 {[%emt 0:00:32]} 9. c3 {[%emt 0:05:
15]} Be7 {[%emt 0:02:06]} 10. f4 {[%emt 0:00:47]} O-O {[%emt 0:00:45]} 11. Be3
{[%emt 0:07:32]} f6 {[%emt 0:02:29]} 12. Nxc6 {[%emt 0:00:58]} bxc6 {[%emt 0:
00:05]} 13. Nd2 {[%emt 0:00:52]} fxe5 {[%emt 0:06:20]} 14. fxe5 {[%emt 0:01:12]
} Qe8 {[%emt 0:00:19]} 15. a5 {[%emt 0:27:52]} c5 {[%emt 0:05:20]} 16. Nf3 {
[%emt 0:07:49]} Qc6 {[%emt 0:23:42]} 17. Bg5 {[%emt 0:05:19]} Bxg5 {[%emt 0:02:
04]} 18. Nxg5 {[%emt 0:00:06]} Bf5 {[%emt 0:01:35]} 19. Qe2 {[%emt 0:16:03]} h6
{[%emt 0:05:14]} 20. Nf3 {[%emt 0:00:26]} Rab8 {[%emt 0:04:45]} 21. Rf2 {
[%emt 0:03:33]} Be4 {[%emt 0:04:42]} 22. Raf1 {[%emt 0:00:28]} Rfe8 {[%emt 0:
11:21]} 23. Qe3 {[%emt 0:02:34]} a6 {[%emt 0:01:11]} 24. h3 {[%emt 0:01:33]}
Re7 {[%emt 0:03:30]} 25. Qf4 {[%emt 0:03:14]} Rbe8 {[%emt 0:02:52]} 26. Re1 {
[%emt 0:01:38]} c4 {[%emt 0:07:57]} 27. Nd4 {[%emt 0:01:29]} Qg6 {[%emt 0:01:
05]} 28. Re3 {[%emt 0:00:53]} Rf7 {[%emt 0:09:52]} 29. Qh4 {[%emt 0:02:15]}
Rxf2 {[%emt 0:00:53]} 30. Qxf2 {[%emt 0:00:06]} Rxe5 {[%emt 0:00:48]} 31. Rg3 {
[%emt 0:00:20]} Qd6 {[%emt 0:01:00]} 32. Qf4 {[%emt 0:00:24]} c5 {[%emt 0:01:
13]} 33. Qg4 {[%emt 0:02:18]} Re7 {[%emt 0:01:38]} 34. Ne2 {[%emt 0:01:41]} Kh7
{[%emt 0:00:38]} 35. Nf4 {[%emt 0:00:29]} Rf7 {[%emt 0:00:38]} 36. Nh5 {
[%emt 0:00:58]} g6 {[%emt 0:00:34]} 37. Qc8 {[%emt 0:00:31]} Qf8 {[%emt 0:00:
21]} 0-1

[Event "36th European Club Cup 2021"]
[Site "Struga"]
[Date "2021.09.24"]
[Round "7.29"]
[White "Postny, Evgeny"]
[Black "Miljkovic, Miroslav D"]
[Result "0-1"]
[ECO "D30"]
[WhiteElo "2564"]
[BlackElo "2470"]
[Annotator "ChessBase"]
[PlyCount "78"]
[EventDate "2021.09.18"]
[EventType "team-tourn"]
[EventCountry "MKD"]
[SourceTitle "playchess.com"]
[Source "ChessBase"]
[SourceQuality "1"]
[TimeControl "40/5400+30:1800+30"]

1. d4 {[%emt 0:00:05]} d5 {[%emt 0:00:10]} 2. c4 {[%emt 0:00:10]} e6 {[%emt 0:
00:07]} 3. Nf3 {[%emt 0:00:29]} a6 {[%emt 0:00:49]} 4. c5 {[%emt 0:02:45]} b6 {
[%emt 0:02:09]} 5. cxb6 {[%emt 0:00:11]} c5 {[%emt 0:14:39]} 6. e3 {[%emt 0:05:
13]} Nd7 {[%emt 0:01:49]} 7. Nc3 {[%emt 0:03:24]} Ngf6 {[%emt 0:00:46]} 8. Bd3
{[%emt 0:02:30]} Qxb6 {[%emt 0:07:17]} 9. O-O {[%emt 0:01:33]} Bd6 {[%emt 0:06:
16]} 10. Na4 {[%emt 0:05:50]} Qb8 {[%emt 0:04:48]} 11. Bd2 {[%emt 0:20:17]} c4
{[%emt 0:06:51]} 12. Bc2 {[%emt 0:00:37]} O-O {[%emt 0:00:58]} 13. b3 {[%emt 0:
00:59]} cxb3 {[%emt 0:00:43]} 14. axb3 {[%emt 0:00:11]} a5 {[%emt 0:05:23]} 15.
Nb2 {[%emt 0:05:57]} Bc7 {[%emt 0:07:40]} 16. Qb1 {[%emt 0:05:48]} Ne4 {
[%emt 0:09:02]} 17. g3 {[%emt 0:03:18]} f5 {[%emt 0:03:31]} 18. Rc1 {[%emt 0:
02:43]} Ndf6 {[%emt 0:02:32]} 19. Nd3 {[%emt 0:04:55]} Nxd2 {[%emt 0:10:34]}
20. Nxd2 {[%emt 0:00:20]} Ne4 {[%emt 0:00:04]} 21. Nxe4 {[%emt 0:02:39]} fxe4 {
[%emt 0:00:01]} 22. Nc5 {[%emt 0:00:24]} e5 {[%emt 0:00:22]} 23. b4 {[%emt 0:
01:31]} exd4 {[%emt 0:05:45]} 24. exd4 {[%emt 0:00:58]} e3 {[%emt 0:05:16]} 25.
Bxh7+ {[%emt 0:14:53]} Kh8 {[%emt 0:00:00]} 26. Ra2 {[%emt 0:00:31]} Bh3 {
[%emt 0:04:10]} 27. fxe3 {[%emt 0:13:08]} Qd8 {[%emt 0:00:04]} 28. Qg6 {
[%emt 0:01:39]} Rf6 {[%emt 0:00:40]} 29. Qd3 {[%emt 0:00:35]} Qe7 {[%emt 0:00:
59]} 30. Rf2 {[%emt 0:00:58]} Rxf2 {[%emt 0:00:39]} 31. Kxf2 {[%emt 0:00:01]}
Rf8+ {[%emt 0:00:57]} 32. Ke2 {[%emt 0:01:12]} axb4 {[%emt 0:00:50]} 33. Re1 {
[%emt 0:00:22]} Bd6 {[%emt 0:00:33]} 34. Nb3 {[%emt 0:00:50]} Bg4+ {[%emt 0:00:
10]} 35. Kd2 {[%emt 0:00:04]} Rf2+ {[%emt 0:00:10]} 36. Kc1 {[%emt 0:00:05]}
Qa7 {[%emt 0:00:15]} 37. Nd2 {[%emt 0:01:22]} Qa1+ {[%emt 0:00:06]} 38. Qb1 {
[%emt 0:00:24]} Qc3+ {[%emt 0:00:15]} 39. Qc2 {[%emt 0:00:07]} Rxd2 {[%emt 0:
00:05]} 0-1

[Event "36th European Club Cup 2021"]
[Site "Struga"]
[Date "2021.09.24"]
[Round "7.30"]
[White "Stankovic, Milos"]
[Black "Huzman, Alexander"]
[Result "1/2-1/2"]
[ECO "C42"]
[WhiteElo "2409"]
[BlackElo "2547"]
[Annotator "ChessBase"]
[PlyCount "143"]
[EventDate "2021.09.18"]
[EventType "team-tourn"]
[EventCountry "MKD"]
[SourceTitle "playchess.com"]
[Source "ChessBase"]
[SourceQuality "1"]
[TimeControl "40/5400+30:1800+30"]

1. e4 {[%emt 0:00:15]} e5 {[%emt 0:00:07]} 2. Nf3 {[%emt 0:00:32]} Nf6 {
[%emt 0:00:14]} 3. Nxe5 {[%emt 0:04:37]} d6 {[%emt 0:00:32]} 4. Nf3 {[%emt 0:
01:13]} Nxe4 {[%emt 0:00:24]} 5. Qe2 {[%emt 0:07:27]} Qe7 {[%emt 0:00:53]} 6.
d3 {[%emt 0:00:42]} Nf6 {[%emt 0:01:38]} 7. Bg5 {[%emt 0:00:32]} Nbd7 {[%emt 0:
05:09]} 8. Nc3 {[%emt 0:03:26]} h6 {[%emt 0:02:46]} 9. Bh4 {[%emt 0:01:18]}
Qxe2+ {[%emt 0:09:03]} 10. Bxe2 {[%emt 0:02:44]} g5 {[%emt 0:00:26]} 11. Bg3 {
[%emt 0:00:23]} Nh5 {[%emt 0:00:03]} 12. Nd5 {[%emt 0:03:59]} Kd8 {[%emt 0:00:
41]} 13. Nd2 {[%emt 0:04:00]} Nxg3 {[%emt 0:11:15]} 14. hxg3 {[%emt 0:01:37]}
Bg7 {[%emt 0:08:39]} 15. O-O-O {[%emt 0:03:48]} Nf6 {[%emt 0:00:10]} 16. Ne3 {
[%emt 0:10:03]} Be6 {[%emt 0:02:27]} 17. g4 {[%emt 0:02:32]} Kd7 {[%emt 0:11:
35]} 18. Bf3 {[%emt 0:07:00]} c6 {[%emt 0:04:59]} 19. Nb3 {[%emt 0:04:55]} h5 {
[%emt 0:04:07]} 20. gxh5 {[%emt 0:03:44]} g4 {[%emt 0:00:09]} 21. Be2 {[%emt 0:
00:19]} Bh6 {[%emt 0:00:17]} 22. Nd4 {[%emt 0:07:23]} g3 {[%emt 0:05:23]} 23.
Kb1 {[%emt 0:00:55]} gxf2 {[%emt 0:04:29]} 24. Ndf5 {[%emt 0:01:59]} Nd5 {
[%emt 0:09:44]} 25. Nxd5 {[%emt 0:03:42]} Bxf5 {[%emt 0:00:24]} 26. Bg4 {
[%emt 0:01:27]} Be6 {[%emt 0:03:06]} 27. Bxe6+ {[%emt 0:06:18]} fxe6 {[%emt 0:
00:38]} 28. Nf6+ {[%emt 0:00:06]} Ke7 {[%emt 0:00:08]} 29. Ne4 {[%emt 0:07:18]}
Be3 {[%emt 0:06:40]} 30. Rh3 {[%emt 0:01:09]} Bb6 {[%emt 0:00:16]} 31. g4 {
[%emt 0:01:48]} d5 {[%emt 0:01:45]} 32. Nd2 {[%emt 0:01:27]} Rag8 {[%emt 0:00:
51]} 33. Rh4 {[%emt 0:00:15]} Be3 {[%emt 0:01:06]} 34. Nf3 {[%emt 0:00:49]} Bf4
{[%emt 0:00:51]} 35. Nh2 {[%emt 0:01:13]} Bg3 {[%emt 0:03:44]} 36. Rh3 {
[%emt 0:00:06]} Bxh2 {[%emt 0:00:05]} 37. Rxh2 {[%emt 0:00:04]} Rxg4 {[%emt 0:
00:03]} 38. Rxf2 {[%emt 0:00:05]} Rxh5 {[%emt 0:00:04]} 39. b3 {[%emt 0:02:37]}
Rgh4 {[%emt 0:01:33]} 40. Rdf1 {[%emt 0:00:00]} Rh1 {[%emt 0:00:00]} 41. Rf7+ {
[%emt 0:00:59]} Ke8 {[%emt 0:03:32]} 42. Rf8+ {[%emt 0:01:48]} Kd7 {[%emt 0:00:
09]} 43. R8f7+ {[%emt 0:00:06]} Kc8 {[%emt 0:00:01]} 44. Rxh1 {[%emt 0:00:38]}
Rxh1+ {[%emt 0:00:43]} 45. Kb2 {[%emt 0:00:02]} Re1 {[%emt 0:00:04]} 46. d4 {
[%emt 0:02:38]} a5 {[%emt 0:01:04]} 47. a4 {[%emt 0:00:43]} Re3 {[%emt 0:00:18]
} 48. Re7 {[%emt 0:00:41]} Kb8 {[%emt 0:01:07]} 49. Rh7 {[%emt 0:00:50]} Ka7 {
[%emt 0:00:11]} 50. Re7 {[%emt 0:00:22]} Kb6 {[%emt 0:00:48]} 51. Rf7 {[%emt 0:
00:34]} c5 {[%emt 0:03:42]} 52. dxc5+ {[%emt 0:01:20]} Kc6 {[%emt 0:00:16]} 53.
Kc1 {[%emt 0:01:42]} e5 {[%emt 0:03:37]} 54. Kd2 {[%emt 0:06:08]} Rh3 {[%emt 0:
00:29]} 55. Re7 {[%emt 0:00:06]} e4 {[%emt 0:00:08]} 56. c3 {[%emt 0:01:41]}
Rh2+ {[%emt 0:00:57]} 57. Kc1 {[%emt 0:00:55]} Ra2 {[%emt 0:05:53]} 58. Kb1 {
[%emt 0:09:16]} Re2 {[%emt 0:00:22]} 59. Kc1 {[%emt 0:00:36]} e3 {[%emt 0:00:
24]} 60. Kd1 {[%emt 0:05:59]} Rb2 {[%emt 0:00:27]} 61. Rxe3 {[%emt 0:00:15]}
Rxb3 {[%emt 0:00:13]} 62. Kc2 {[%emt 0:00:10]} Ra3 {[%emt 0:00:07]} 63. Re8 {
[%emt 0:00:27]} Rxa4 {[%emt 0:13:45]} 64. Rc8+ {[%emt 0:00:32]} Kb5 {[%emt 0:
00:27]} 65. Rc7 {[%emt 0:01:53]} Rh4 {[%emt 0:00:30]} 66. Rxb7+ {[%emt 0:01:48]
} Kxc5 {[%emt 0:00:04]} 67. Ra7 {[%emt 0:01:13]} a4 {[%emt 0:00:10]} 68. Ra5+ {
[%emt 0:00:17]} Kd6 {[%emt 0:00:05]} 69. Kd3 {[%emt 0:00:40]} Ke5 {[%emt 0:00:
07]} 70. Ra8 {[%emt 0:00:26]} Rh3+ {[%emt 0:00:23]} 71. Kc2 {[%emt 0:00:54]}
Rh2+ {[%emt 0:00:03]} 72. Kb1 {[%emt 0:00:06]} 1/2-1/2

[Event "36th European Club Cup 2021"]
[Site "Struga"]
[Date "2021.09.24"]
[Round "7.31"]
[White "Gukesh D"]
[Black "Donchenko, Alexander"]
[Result "1/2-1/2"]
[ECO "D38"]
[WhiteElo "2599"]
[BlackElo "2641"]
[Annotator "ChessBase"]
[PlyCount "69"]
[EventDate "2021.09.18"]
[EventType "team-tourn"]
[EventCountry "MKD"]
[SourceTitle "playchess.com"]
[Source "ChessBase"]
[SourceQuality "1"]
[TimeControl "40/5400+30:1800+30"]

1. d4 {[%emt 0:01:23]} Nf6 {[%emt 0:00:19]} 2. c4 {[%emt 0:00:49]} e6 {[%emt 0:
00:07]} 3. Nf3 {[%emt 0:00:34]} d5 {[%emt 0:00:15]} 4. Nc3 {[%emt 0:01:35]} Bb4
{[%emt 0:00:24]} 5. Bg5 {[%emt 0:03:17]} h6 {[%emt 0:00:23]} 6. Bxf6 {[%emt 0:
00:27]} Qxf6 {[%emt 0:00:07]} 7. Qa4+ {[%emt 0:00:05]} Nc6 {[%emt 0:00:08]} 8.
e3 {[%emt 0:00:06]} O-O {[%emt 0:00:36]} 9. Be2 {[%emt 0:00:44]} dxc4 {[%emt 0:
06:41]} 10. O-O {[%emt 0:03:07]} Bd7 {[%emt 0:06:42]} 11. Bxc4 {[%emt 0:02:49]}
Bxc3 {[%emt 0:00:53]} 12. bxc3 {[%emt 0:00:11]} Rfd8 {[%emt 0:00:16]} 13. Be2 {
[%emt 0:04:35]} e5 {[%emt 0:07:06]} 14. Qc2 {[%emt 0:10:05]} Bf5 {[%emt 0:10:
48]} 15. Bd3 {[%emt 0:12:09]} Bxd3 {[%emt 0:00:49]} 16. Qxd3 {[%emt 0:00:03]}
Qe6 {[%emt 0:00:37]} 17. Qc2 {[%emt 0:10:41]} b6 {[%emt 0:04:50]} 18. Rad1 {
[%emt 0:08:43]} Rd6 {[%emt 0:06:36]} 19. c4 {[%emt 0:06:51]} exd4 {[%emt 0:08:
47]} 20. exd4 {[%emt 0:01:17]} Qf6 {[%emt 0:01:55]} 21. d5 {[%emt 0:04:05]} Ne7
{[%emt 0:01:13]} 22. Rfe1 {[%emt 0:01:39]} c6 {[%emt 0:04:08]} 23. Qe4 {
[%emt 0:00:40]} Re8 {[%emt 0:07:42]} 24. h3 {[%emt 0:05:38]} Rdd8 {[%emt 0:02:
46]} 25. Ne5 {[%emt 0:02:54]} cxd5 {[%emt 0:01:37]} 26. cxd5 {[%emt 0:00:06]}
Ng6 {[%emt 0:03:19]} 27. Ng4 {[%emt 0:05:52]} Qe7 {[%emt 0:00:14]} 28. Qxe7 {
[%emt 0:04:37]} Rxe7 {[%emt 0:00:15]} 29. Rxe7 {[%emt 0:01:37]} Nxe7 {[%emt 0:
00:03]} 30. Ne3 {[%emt 0:00:05]} Rd7 {[%emt 0:02:38]} 31. g4 {[%emt 0:02:47]}
Kf8 {[%emt 0:05:35]} 32. Kg2 {[%emt 0:00:48]} Nc8 {[%emt 0:03:34]} 33. Rc1 {
[%emt 0:01:49]} Ne7 {[%emt 0:00:07]} 34. Rd1 {[%emt 0:00:55]} Nc8 {[%emt 0:00:
01]} 35. Rc1 {[%emt 0:03:10]} 1/2-1/2

[Event "36th European Club Cup 2021"]
[Site "Struga"]
[Date "2021.09.24"]
[Round "7.32"]
[White "Demchenko, Anton"]
[Black "Dudin, Gleb"]
[Result "1-0"]
[ECO "B12"]
[WhiteElo "2610"]
[BlackElo "2434"]
[Annotator "ChessBase"]
[PlyCount "81"]
[EventDate "2021.09.18"]
[EventType "team-tourn"]
[EventCountry "MKD"]
[SourceTitle "playchess.com"]
[Source "ChessBase"]
[SourceQuality "1"]
[TimeControl "40/5400+30:1800+30"]

1. e4 {[%emt 0:00:03]} c6 {[%emt 0:01:24]} 2. d4 {[%emt 0:00:13]} d5 {[%emt 0:
00:08]} 3. e5 {[%emt 0:00:16]} c5 {[%emt 0:01:01]} 4. Nf3 {[%emt 0:00:15]} cxd4
{[%emt 0:01:00]} 5. Nxd4 {[%emt 0:00:43]} e6 {[%emt 0:03:19]} 6. Nd2 {[%emt 0:
03:40]} Ne7 {[%emt 0:04:32]} 7. N2f3 {[%emt 0:03:03]} Nbc6 {[%emt 0:04:39]} 8.
c3 {[%emt 0:03:49]} Ng6 {[%emt 0:03:23]} 9. Nxc6 {[%emt 0:00:52]} bxc6 {
[%emt 0:00:11]} 10. Bd3 {[%emt 0:00:04]} Be7 {[%emt 0:33:18]} 11. Qe2 {[%emt 0:
03:44]} a5 {[%emt 0:09:25]} 12. h4 {[%emt 0:04:32]} Nf8 {[%emt 0:06:42]} 13.
Nd4 {[%emt 0:16:55]} Bd7 {[%emt 0:03:36]} 14. Qg4 {[%emt 0:06:44]} Rg8 {
[%emt 0:05:20]} 15. Bg5 {[%emt 0:14:17]} Qb8 {[%emt 0:07:08]} 16. Nf3 {[%emt 0:
05:00]} Qxb2 {[%emt 0:08:50]} 17. Rc1 {[%emt 0:01:10]} f6 {[%emt 0:01:41]} 18.
Bd2 {[%emt 0:01:17]} f5 {[%emt 0:00:30]} 19. Qg3 {[%emt 0:00:22]} c5 {[%emt 0:
02:06]} 20. O-O {[%emt 0:00:36]} Qb8 {[%emt 0:01:26]} 21. Rb1 {[%emt 0:05:35]}
Qc7 {[%emt 0:00:08]} 22. Bg5 {[%emt 0:10:15]} h6 {[%emt 0:00:57]} 23. Bxh6 {
[%emt 0:00:25]} Bc6 {[%emt 0:00:42]} 24. Bf4 {[%emt 0:00:48]} g6 {[%emt 0:00:
30]} 25. Rb2 {[%emt 0:01:16]} Rb8 {[%emt 0:00:14]} 26. Rfb1 {[%emt 0:00:37]}
Rxb2 {[%emt 0:00:07]} 27. Rxb2 {[%emt 0:00:01]} Rh8 {[%emt 0:01:11]} 28. Bg5 {
[%emt 0:02:09]} Kf7 {[%emt 0:00:31]} 29. Be2 {[%emt 0:02:08]} Nh7 {[%emt 0:00:
30]} 30. Bxe7 {[%emt 0:02:12]} Qxe7 {[%emt 0:00:02]} 31. Qf4 {[%emt 0:00:07]}
Kg7 {[%emt 0:00:47]} 32. Qe3 {[%emt 0:01:18]} a4 {[%emt 0:00:40]} 33. Rb6 {
[%emt 0:00:47]} Rc8 {[%emt 0:00:18]} 34. g3 {[%emt 0:03:21]} Nf8 {[%emt 0:00:
43]} 35. Ng5 {[%emt 0:02:18]} Nh7 {[%emt 0:00:30]} 36. Qxc5 {[%emt 0:00:28]}
Qd7 {[%emt 0:00:30]} 37. Nf3 {[%emt 0:00:59]} Nf8 {[%emt 0:00:25]} 38. Nd4 {
[%emt 0:00:28]} Ba8 {[%emt 0:00:10]} 39. Qb4 {[%emt 0:00:19]} Kf7 {[%emt 0:00:
28]} 40. Ra6 {[%emt 0:00:00]} Qc7 {[%emt 0:00:00]} 41. Nb5 {[%emt 0:02:36]} 1-0

[Event "36th European Club Cup 2021"]
[Site "Struga"]
[Date "2021.09.24"]
[Round "7.33"]
[White "Boskovic, Drasko"]
[Black "Antipov, Mikhail Al."]
[Result "0-1"]
[ECO "B51"]
[WhiteElo "2457"]
[BlackElo "2607"]
[Annotator "ChessBase"]
[PlyCount "66"]
[EventDate "2021.09.18"]
[EventType "team-tourn"]
[EventCountry "MKD"]
[SourceTitle "playchess.com"]
[Source "ChessBase"]
[SourceQuality "1"]
[TimeControl "40/5400+30:1800+30"]

1. e4 {[%emt 0:00:03]} c5 {[%emt 0:00:04]} 2. Nf3 {[%emt 0:00:09]} d6 {[%emt 0:
00:05]} 3. Bb5+ {[%emt 0:01:19]} Nd7 {[%emt 0:00:08]} 4. O-O {[%emt 0:00:20]}
a6 {[%emt 0:00:46]} 5. Bd3 {[%emt 0:00:06]} Ngf6 {[%emt 0:00:14]} 6. Re1 {
[%emt 0:02:20]} Qc7 {[%emt 0:03:27]} 7. Qe2 {[%emt 0:05:10]} b5 {[%emt 0:12:27]
} 8. c4 {[%emt 0:00:27]} bxc4 {[%emt 0:06:13]} 9. Bxc4 {[%emt 0:00:46]} e6 {
[%emt 0:00:06]} 10. d4 {[%emt 0:05:05]} cxd4 {[%emt 0:00:25]} 11. Nxd4 {
[%emt 0:00:08]} Be7 {[%emt 0:00:05]} 12. Bxe6 {[%emt 0:04:10]} fxe6 {[%emt 0:
02:41]} 13. Nxe6 {[%emt 0:00:04]} Qb7 {[%emt 0:02:40]} 14. Nxg7+ {[%emt 0:00:
26]} Kf7 {[%emt 0:00:18]} 15. Nf5 {[%emt 0:00:52]} Ne5 {[%emt 0:17:59]} 16.
Nxe7 {[%emt 0:16:32]} Qxe7 {[%emt 0:01:37]} 17. Nc3 {[%emt 0:08:02]} Rg8 {
[%emt 0:07:29]} 18. Kh1 {[%emt 0:31:00]} Rxg2 {[%emt 0:27:40]} 19. Kxg2 {
[%emt 0:00:04]} Bg4 {[%emt 0:00:05]} 20. Qc2 {[%emt 0:00:25]} Bh3+ {[%emt 0:04:
12]} 21. Kxh3 {[%emt 0:19:52]} Qe6+ {[%emt 0:01:08]} 22. Kg2 {[%emt 0:00:05]}
Rg8+ {[%emt 0:02:09]} 23. Kf1 {[%emt 0:00:05]} Qh3+ {[%emt 0:04:19]} 24. Ke2 {
[%emt 0:00:05]} Qf3+ {[%emt 0:00:03]} 25. Kf1 {[%emt 0:00:06]} Nfg4 {[%emt 0:
03:58]} 26. Bf4 {[%emt 0:00:46]} Qxf4 {[%emt 0:00:02]} 27. Qb3+ {[%emt 0:01:21]
} Kg7 {[%emt 0:00:03]} 28. Nd1 {[%emt 0:04:08]} Nxh2+ {[%emt 0:01:07]} 29. Ke2
{[%emt 0:00:01]} Qg4+ {[%emt 0:00:07]} 30. Ke3 {[%emt 0:00:53]} Nhf3 {[%emt 0:
01:43]} 31. Qb7+ {[%emt 0:00:37]} Kh8 {[%emt 0:00:15]} 32. Nc3 {[%emt 0:00:12]}
Qg5+ {[%emt 0:00:11]} 33. Ke2 {[%emt 0:00:08]} Qd2+ {[%emt 0:00:04]} 0-1